Cogmind - Beta 16.1 @@@ ROGUE MODE // 2026.03.16 @ 22:39:04 Player: MatMK Result: Destroyed by D-53 Grenadier with Mini Grenade Launcher Performance ------------- Evolutions (0) 0 Regions Visited (2) 400 Robots Destroyed (13) 65 Value Destroyed (257) 257 Prototype IDs (0) 0 Alien Tech Used (0) 0 Bonus (-30) -30 TOTAL SCORE: 692 Bonus ------- Friendly Fire -30 Cogmind --------- Core Integrity 0/250 Matter 295/500 Energy 97/100 System Corruption 2% Temperature Cool (2) Movement Walking (120) Location -10/Mines Parts ------- > --- POWER (1) -------- (None) > --- PROPULSION (2) --- Flexi-carbon Leg > --- UTILITY (2) ------ Small Storage Unit High-capacity Matter Pod > --- WEAPON (2) ------- (None) > --- INVENTORY (8) ---- Aluminum Leg Aluminum Leg Large Storage Unit Improved Terrain Scanner Seismic Detector Armor Integrity Analyzer Small Laser Peak State ------------ > --- POWER ------------ Light Ion Engine > --- PROPULSION ------- Aluminum Leg Flexi-carbon Leg > --- UTILITY ---------- Small Storage Unit High-capacity Matter Pod > --- WEAPON ----------- Assault Rifle Light Assault Rifle > --- INVENTORY -------- Aluminum Leg Aluminum Leg Large Storage Unit Improved Terrain Scanner Seismic Detector Armor Integrity Analyzer Small Laser [Rating: 12] Favorites ----------- Power Light Ion Engine Engine Light Ion Engine Propulsion Aluminum Leg Leg Aluminum Leg Utility Small Storage Unit Device Seismic Detector Storage Small Storage Unit Weapon Assault Rifle Ballistic Gun Assault Rifle Launcher Grenade Launcher Build | -11 -10 -10 ------- Run | Yrd Mat Min Slots Evolved . | . . . Power . | . . . Propulsion . | . . . Utility . | . . . Weapon . | . . . Parts Attached 16 | 9 3 4 Power 2 | 1 . 1 Engine 2 | 1 . 1 Core . | . . . Reactor . | . . . Propulsion 6 | 2 2 2 Treads . | . . . Leg 6 | 2 2 2 Wheel . | . . . Hover . | . . . Flight . | . . . Utility 4 | 3 1 . Device 2 | 2 . . Storage 2 | 1 1 . Processor . | . . . Hackware . | . . . Protection . | . . . Artifact . | . . . Weapon 4 | 3 . 1 Energy Gun . | . . . Energy Cannon . | . . . Ballistic Gun 3 | 3 . . Ballistic Cannon . | . . . Launcher 1 | . . 1 Special Weapon . | . . . Impact Weapon . | . . . Slashing Weapon . | . . . Piercing Weapon . | . . . Special Melee Weapon . | . . . Unidentified Prototypes . | . . . Parts Lost 8 | . 1 7 Power 2 | . . 2 Propulsion 2 | . . 2 Utility . | . . . Weapon 4 | . 1 3 Highest Loss Streak 7 | . 1 7 To Critical Strikes . | . . . Average Backups 7 | 6 7 7 Power . | . 1 . Propulsion 3 | 3 3 1 Utility 1 | . 1 3 Weapon 1 | 1 1 1 Tool/Special . | . . . Unused Backups 11 | 2 7 2 Power . | . . . Propulsion 9 | 2 6 1 Utility . | . . . Weapon 2 | . 1 1 Tool/Special . | . . . Average Slot Usage (%) 98 | . 100 89 Engine 13 | . 14 12 Leg 27 | . 28 26 Device 9 | . 11 . Storage 18 | . 16 28 Ballistic Gun 26 | . 28 19 Peak Build Rating 12 | 9 9 12 Average Rating 7 | 7 7 7 On Entrance 5 | . 9 8 Avg Prop Armor Cover (%) . | . . . Naked Turns . | . . . Heaviest Build 15 | 13 15 15 Greatest Support 30 | 20 20 30 Greatest Overweight (x) 1 | 1 . 1 Average Overweight (x) . | . . . Largest Inventory Capacity 8 | 8 8 8 Average Capacity 7 | 7 8 8 Most Carried 8 | 8 8 8 Average Carried 7 | 6 7 7 Final Capacity 8 | 8 8 8 Final Carried 8 | 8 8 7 Class Distribution -------------------- 100% | Mutant Dominant Class ---------------- Mutant | -10/Materials Mutant | -10/Mines Resources | -11 -10 -10 ----------- Run | Yrd Mat Min Matter Collected 567 | 316 162 89 Remotely . | . . . Salvage Created 480 | 197 207 76 Parts 32 | 16 14 2 Haulers Intercepted . | . . . Recyclers Shooed 1 | 1 . . Parts Field Recycled . | . . . Retrieved Matter . | . . . Parts Self-Destructed . | . . . Prevented . | . . . Parts Restored . | . . . Kills | -11 -10 -10 ------- Run | Yrd Mat Min Combat Hostiles Destroyed 21 | . 5 16 Guns 7 | . 5 2 AOE 14 | . . 14 Classes Destroyed 5 | 2 1 2 Tunneler 5 | 5 . . Recycler 1 | 1 . . Swarmer 2 | . . 2 Grunt 5 | . 5 . Assembled 14 | . . 14 Best Kill Streak 14 | 3 2 14 Combat Bots Only 14 | . 2 14 Max Kills in Single Turn 6 | 1 1 6 Gunslinging 1 | . . 1 Exploded 6 | . . 6 Melee . | . . . Uniques/NPCs Destroyed . | . . . Combat | -11 -10 -10 -------- Run | Yrd Mat Min Hostile Shots Fired 77 | . 27 50 Missed 19 | . 5 14 Hits 58 | . 22 36 Melee 3 | . . 3 Projectile 55 | . 22 33 AOE 12 | . . 12 Critical Strikes 1 | . 1 . Damage Taken 1128 | . 332 796 Core 257 | . 56 201 Absorbed by Shields . | . . . Core Remaining (%) 100 | 100 . . Volleys Fired 79 | 41 27 11 Largest 2 | 1 2 2 Hottest 40 | 20 40 40 Shots Fired 110 | 41 54 15 Gun 106 | 41 54 11 Cannon . | . . . Launcher 4 | . . 4 Special . | . . . Kinetic 106 | 41 54 11 Thermal . | . . . Explosive 4 | . . 4 Electromagnetic . | . . . Robot Hit Streak 7 | 7 6 2 Robot Miss Streak 4 | 4 3 4 Penetration Max . | . . . Secondary Targets 1 | . . 1 Max Gunslinging Chain 1 | . . 1 Shots Hit Robots 64 | 25 35 4 Core Hits 58 | 10 14 34 Critical Kills . | . . . Critical Parts Destroyed . | . . . Critical Strikes . | . . . Melee Attacks . | . . . Impact . | . . . Slashing . | . . . Piercing . | . . . Sneak Attacks . | . . . Combat Hostiles . | . . . Follow-up Attacks . | . . . Damage Inflicted 1422 | 241 385 796 Guns 658 | 241 368 49 Cannons . | . . . Explosions 747 | . . 747 Melee . | . . . Ramming 17 | . 17 . Kinetic 658 | 241 368 49 Thermal . | . . . Explosive 747 | . . 747 Electromagnetic . | . . . Impact . | . . . Slashing . | . . . Piercing . | . . . Highest Corruption 2 | . . 2 Average Corruption 2 | . . 2 Corruption Purged . | . . . Corruption Blocked . | . . . Effects 1 | . . 1 Energy Discharges 1 | . . 1 Overload Shots . | . . . Overflow Damage . | . . . Projectiles . | . . . Explosions . | . . . Melee . | . . . Knockbacks . | . . . Impact . | . . . Kinetic . | . . . Secondary . | . . . Self-Inflicted Damage 12 | . . 12 Shots 1 | . . 1 Rammed . | . . . Targets Rammed 4 | . 4 . Kicked 4 | . 4 . Crushed . | . . . Highest Temperature 18 | . 18 10 Average Temperature 8 | . 8 10 Received Heat Transfer 223 | . 183 40 Siege Activations . | . . . Martial Activations . | . . . Shielding Activations . | . . . Robots Disrupted . | . . . Combat Hostiles . | . . . Robots Corrupted . | . . . Combat Hostiles . | . . . Parts Fried . | . . . Impact Corruptions . | . . . Robots Melted . | . . . Combat Hostiles . | . . . Parts Melted . | . . . Heat Transferred . | . . . Parts Sabotaged . | . . . Parts Stolen . | . . . Parts Stripped . | . . . Power Chain Reactions . | . . . Alert | -11 -10 -10 ------- Run | Yrd Mat Min Maximum Alert Level . | . . . Low Security (%) 100 | 100 100 100 Level 1 . | . . . Level 2 . | . . . Level 3 . | . . . Level 4 . | . . . Level 5 . | . . . High Security . | . . . Max Security . | . . . Peak Influence 41 | 5 40 41 Initial 1 | . . 1 Average 7 | . 11 14 Influence Increases 238 | 30 150 58 Destroy 0b10 Robot/C 140 | . 100 40 Destroy 0b10 Robot/NC 30 | 30 . . Destroy Leader 20 | . 20 . Destroy Structure 18 | . . 18 Partial Spotted 15 | . 15 . Lose Combat Pursuer 15 | . 15 . Influence Decreases 238 | 30 145 63 Entered New Map 4 | . . 4 Time Decay 194 | 30 135 29 Lost Part 40 | . 10 30 Squads Dispatched 1 | . 1 . Investigation . | . . . Extermination . | . . . Reinforcement 1 | . 1 . Assault . | . . . Garrison . | . . . Intercept . | . . . Searches Triggered . | . . . Construction Impeded . | . . . Haulers Reinforced . | . . . Active Scanning Responses . | . . . Cargo Convoy Interrupts . | . . . Stealth | -11 -10 -10 --------- Run | Yrd Mat Min Distress Signals 2 | . 2 . Communications Jammed . | . . . Distress Signals . | . . . Times Spotted 39 | . 14 25 Peak Tracking Total 20 | . 4 20 Tactical Retreats 1 | . 1 . Traps | -11 -10 -10 ------- Run | Yrd Mat Min Traps Triggered 1 | . 1 . Indirectly . | . . . Trap Hack Attempts . | . . . Triggered . | . . . Disarmed . | . . . Reprogrammed . | . . . Reused . | . . . Traps Extracted . | . . . Installed . | . . . Triggered . | . . . Machines | -11 -10 -10 ---------- Run | Yrd Mat Min Machines Disabled . | . . . Max in Single Turn . | . . . Machines Repaired . | . . . Machines Dismantled . | . . . Machines Sabotaged . | . . . Overloaded Fab Kills . | . . . Hacking | -11 -10 -10 --------- Run | Yrd Mat Min Machines Accessed 1 | . 1 . Terminals 1 | . 1 . Fabricators . | . . . Repair Stations . | . . . Recycling Units . | . . . Scanalyzers . | . . . Garrison Access . | . . . Total Hacks 1 | . 1 . Successful 1 | . 1 . Failed . | . . . Catastrophic . | . . . Database Lockouts . | . . . Manual . | . . . Terminals 1 | . 1 . Fabricators . | . . . Repair Stations . | . . . Recycling Units . | . . . Scanalyzers . | . . . Garrison Access . | . . . Terminal Hacks 1 | . 1 . Alert Level 1 | . 1 . Fabricator Hacks . | . . . Repair Station Hacks . | . . . Recycling Unit Hacks . | . . . Scanalyzer . | . . . Garrison Access Hacks . | . . . Unauthorized Hacks . | . . . Terminals . | . . . Fabricators . | . . . Repair Stations . | . . . Recycling Units . | . . . Scanalyzers . | . . . Garrison Access . | . . . Data Cores Recovered . | . . . Used . | . . . Hacking Detections . | . . . Full Trace Events . | . . . Feedback Events . | . . . Feedback Blocked . | . . . Robot Schematics Acquired . | . . . Robots Built . | . . . Authchips . | . . . Time . | . . . Total Robot Build Rating . | . . . Part Schematics Acquired . | . . . Parts Built . | . . . Authchips . | . . . Time . | . . . Total Part Build Rating . | . . . Part Studies Acquired . | . . . Parts Repaired . | . . . Time . | . . . Parts Recycled . | . . . Recycled Matter . | . . . Retrieved Matter . | . . . Retrieved Components . | . . . Parts Scanalyzed . | . . . Part Schematics Acquired . | . . . Parts Damaged . | . . . Bothacking | -11 -10 -10 ------------ Run | Yrd Mat Min Used RIF Installer . | . . . Robots Hacked . | . . . Non-combat . | . . . Combat . | . . . Robot Hacks Applied . | . . . Relay Couplers Released . | . . . Fabnet Peak Effective % . | . . . Robots Rewired . | . . . Allies Hacked . | . . . Hacks Repelled . | . . . Allies | -11 -10 -10 -------- Run | Yrd Mat Min Total Allies 1 | . . 1 Largest Group 1 | . . 1 Highest-Rated Group 31 | . . 31 Highest-Rated Ally 31 | . . 31 Total Orders . | . . . Ally Attacks 13 | . . 13 Total Damage 167 | . . 167 Kills 3 | . . 3 Allies Corrupted . | . . . Allies Melted . | . . . Intel | -11 -10 -10 ------- Run | Yrd Mat Min Active Infowar (turns) 742 | 358 384 . Terrain 233 | 221 12 . Seismic 509 | 137 372 . Robot Analysis Total . | . . . Derelict Logs Recovered . | . . . Drone Launches . | . . . Drone Recoveries . | . . . Exploration | -11 -10 -10 ------------- Run | Yrd Mat Min Turns Passed 997 | 417 489 91 Spaces Moved 528 | 191 292 45 Core 5 | 5 . . Treads . | . . . Legs 523 | 186 292 45 Wheels . | . . . Hover . | . . . Flight . | . . . Fastest Speed 50 | 50 120 120 Average Speed 119 | 118 120 121 Slowest Speed 190 | 120 120 190 Overloaded Moves . | . . . Propulsion Burnouts . | . . . Robots Hopped . | . . . Potential Cave-ins . | . . . Cave-ins Triggered . | . . . Exploration Rate (%) 23 | 6 50 14 Regions Visited 2 Branch Regions 1 Pre-discovered Areas . | . . . Known Exits Taken . | . . . Unknown Exits Taken 2 | 1 1 . Scrap Searched . | . . . Spaces Dug . | . . . Terrain Destroyed 21 | . . 21 Melee . | . . . Projectile . | . . . AOE 21 | . . 21 Terrain Rammed . | . . . Walls Destroyed . | . . . Machines Disabled . | . . . Actions | -11 -10 -10 --------- Run | Yrd Mat Min Total 800 | 346 387 67 Wait 129 | 86 39 4 Move 526 | 190 291 45 Hop . | . . . Pick Up 24 | 13 10 1 Fast Attach 8 | 7 . 1 Attach 9 | 3 3 3 Detach 1 | 1 . . Swap 3 | . 2 1 Drop 17 | 5 11 1 Fire 79 | 41 27 11 Melee . | . . . Ram . | . . . Kick 4 | . 4 . Crush . | . . . Escape Stasis . | . . . Rewire . | . . . Trap . | . . . Miscellaneous . | . . . Route ------- -11/Scrapyard -10/Materials (discovered 3 exits: [*Mat] / [*Min x2]) -10/Mines History --------- Turn | Location | Event 15 | -11/Scrapyard | Discovered new exit (range 14) 418 | -11/Scrapyard | Entered Materials 452 | -10/Materials | Build established: Mutant 625 | -10/Materials | Discovered new exit (range 7) 627 | -10/Materials | Discovered new exit (range 11) 857 | -10/Materials | Discovered new exit (range 15) 907 | -10/Materials | Entered Mines 917 | -10/Mines | Met a Derelict bent on vengeance 931 | -10/Mines | Escorted by a lone wolf Derelict 936 | -10/Mines | Assembled infested the area 941 | -10/Mines | Assisted by a Guerilla fighting off Assembled 973 | -10/Mines | Destroyed 14 combat bots 993 | -10/Mines | Core integrity fell below 50% 996 | -10/Mines | Core integrity fell below 20% 998 | -10/Mines | Destroyed by D-53 Grenadier with Mini Grenade Launcher Last Messages --------------- 00956_ as-58681 suffers critical hit (Burn). 00956_ Aluminum Leg destroyed. 00956_ System corrupted by crushing effect (+2). 00957_ Grenade Launcher destroyed. 00958_ as-58681 destroyed. 00966_ as-46211 destroyed. 00970_ as-22182 suffers critical hit (Burn). 00970_ as-22182 destroyed. 00976_ Acquired 43 matter. 00978_ Acquired Armor Integrity Analyzer. 00979_ Acquired 4 matter. 00982_ Acquired Lgt. Assault Rifle. 00985_ 5S-H0Y(g): "Mission, incomplete...*fzzt*" 00985_ 5S-H0Y(g) destroyed. 00985_ Lgt. Assault Rifle destroyed. 00987_ Acquired 2 matter. 00988_ System corrupted: Energy discharge (-47). 00988_ Assault Rifle destroyed. 00992_ Lgt. Ion Engine destroyed. 00997_ Aluminum Leg destroyed. Map ----- +----------------------------------------------------+ | | | | | | | | | | | | | | | ????????????????????????????????????????????? | | ?????????????????????#########??????????????? | | ?????????????????????# #??????????????? | | ?????????????????????# #??????######### | | ?????????????????????# #?????## [ = # | | ?????????????????????# =% ####??# [ * | | ??????????????????????# !# #### ## | | ??????????????????????# % ### #### | | ?????????????????????## #?###??## | | ????????????????????## = ##??#### | | ????????????????????# #?## # | | ????????????????????# ] ### ## | | ??????????????????### ##? | | ??????????#???????#; ##### ##?? | | ??????????# ????## d ###???####??? | | ???????????? ??# d #???????????? | | ??????????????# # #" #??????????? | | ???????????????# #%" #??????????? | | ???????????????## @ # " ##??????????? | | ????????????????## # ##???????????? | | ?????????????????# ## ##????????????? | | ?????????????????# # ##?? #?????????????? | | ?????????????????#########?? ?????????????? | | ???????????????????????????? ? ????????????? | | ????????????????????????????# ?? ???????????? | | ????????????????????????????##???#??????????? | | ????????????????????????????????????????????? | | ????????????????????????????????????????????? | | ????????????????????????????????????????????? | | ????????????????????????????????????????????? | | ????????????????????????????????????????????? | | ????????????????????????????????????????????? | | ????????????????????????????????????????????? | | ????????????????????????????????????????????? | | ????????????????????????????????????????????? | | ????????????????????????????????????????????? | | ????????????????????????????????????????????? | | ????????????????????????????????????????????? | | ????????????????????????????????????????????? | | ????????????????????????????????????????????? | | ????????????????????????????????????????????? | | ????????????????????????????????????????????? | | ????????????????????????????????????????????? | +----------------------------------------------------+ Best States ------------- Heat Dissipation 25 Energy Generation 10 Energy Capacity 125 Matter Stores 310 Matter Capacity 500 Sight Range 16 Terrain Scan Range 16 Terrain Scan Density 10 Evasion (%) 55 Item Schematics ----------------- None Robot Schematics ------------------ None Fabricated ------------ Nothing Repaired ---------- Nothing Studied --------- None Alien Tech Used ----------------- None Achievements -------------- Hunted Challenges ------------ None Game ------ Seed seed1 Manual? 1 Play Time 00:14:26 Cumulative 12.7 hours Start 2026.03.16 @ 22:19:38 End 2026.03.16 @ 22:39:04 Sessions 1 Manual Loads 0 Difficulty Rogue Special Mode None Game No. 26 Rogue 26 Adventurer 0 Explorer 0 Win Type - Total 0 Types 0/0/0/0/0/0/0/0/0/0 Lore% 2 Gallery% 16 Achievement% 12 Wizard Run 0 Options --------- Layout 1 ASCII 0 Keyboard 0 Movement Arrows Keybinds 0 Fullscreen 1 Font 24/Smallcaps Map View 50x35 Zoom Use 0% Tactical HUD 1 Map Filters NONE Filters NONE Steam 1 RUN: b963e093-37a7-4b46-9fdc-6fabca4a02c0